bitfinex-derivatives/quotes_BTCF0:USTF0_20241208
["timestamp","ask_amount","ask_price","bid_price","bid_amount"]
[1733619988474,0.94181318,100130.0,100100.0,0.53006288]
[1733619988673,0.09774742,100110.0,100100.0,0.51506288]
[1733619988878,0.09782742,100110.0,100100.0,0.51506288]
[1733619989679,0.09782742,100110.0,100100.0,0.87598849]
[1733619990067,0.1874173,100110.0,100100.0,0.76014912]
[1733619990270,0.1874173,100110.0,100100.0,0.79507712]
[1733619990568,0.09882742,100110.0,100100.0,0.79507712]
[1733619991579,0.1884173,100110.0,100100.0,0.79507712]
[1733619992672,0.09882742,100110.0,100100.0,0.79507712]
[1733619993282,0.09882742,100110.0,100100.0,0.46577712]
[1733619993781,0.10891165,100110.0,100100.0,0.46577712]
[1733619994077,0.19850153,100110.0,100100.0,0.46577712]
[1733619995078,0.19850153,100110.0,100100.0,0.48275053]
[1733619995380,0.3179547,100110.0,100100.0,0.63177043]
[1733619995979,0.3179547,100110.0,100100.0,0.64425405]
[1733619996180,0.3179547,100110.0,100100.0,0.64163696]
[1733619996574,0.3179547,100110.0,100100.0,0.62728064]
[1733619996773,0.3179547,100110.0,100100.0,0.64163679]
[1733619997280,0.3678647,100110.0,100100.0,0.64163679]
[1733619997480,0.3678647,100110.0,100100.0,0.64425372]
[1733619999387,0.27827482,100110.0,100100.0,0.64425372]
[1733619999772,0.27827482,100110.0,100100.0,0.70707314]
[1733619999773,0.17044317,100110.0,100100.0,0.70707314]
[1733619999967,0.2601355,100110.0,100100.0,0.87447568]
[1733620000173,0.04991,100110.0,100100.0,1.50778502]
[1733620000377,0.08969233,100120.0,100110.0,0.034928]
[1733620000692,0.18743375,100130.0,100120.0,0.034924]
[1733620000980,0.18743375,100130.0,100120.0,0.63403502]
[1733620001178,0.12461433,100130.0,100120.0,0.27323502]
[1733620001380,1.13272144,100140.0,100130.0,0.034921]
[1733620001584,0.95347456,100140.0,100130.0,0.0492767]
[1733620001879,0.95347456,100140.0,100130.0,0.0493567]
[1733620002285,0.95347456,100140.0,100130.0,0.22773155]
[1733620002667,0.46861219,100140.0,100130.0,0.22773155]
[1733620003583,0.53143161,100140.0,100130.0,0.22773155]
[1733620004685,0.53343161,100140.0,100130.0,0.22773155]
[1733620004874,0.6230749,100140.0,100130.0,0.22773155]
[1733620005068,0.2622749,100140.0,100130.0,0.22773155]
[1733620005274,0.2622749,100140.0,100130.0,0.23034879]
[1733620005578,0.2622749,100140.0,100130.0,0.22773155]
[1733620006986,0.2622749,100140.0,100130.0,0.21337585]
[1733620007281,0.2622749,100140.0,100130.0,0.22273646]
[1733620007690,0.2622749,100140.0,100130.0,0.22772879]
[1733620008194,0.2622749,100140.0,100130.0,0.05434613]
[1733620008384,0.2622749,100140.0,100130.0,0.0493538]
[1733620008778,0.2622749,100140.0,100130.0,0.22772865]
[1733620009082,0.2622749,100140.0,100130.0,0.0493538]
[1733620009286,0.6230749,100140.0,100130.0,0.0493538]
[1733620010082,0.6230749,100140.0,100130.0,0.04935389]
[1733620012183,0.6550749,100140.0,100130.0,0.04935389]
[1733620012794,0.6550749,100140.0,100130.0,0.01443289]
[1733620012998,0.71473398,100140.0,100130.0,0.01443289]
[1733620013187,0.71473398,100140.0,100130.0,0.0081925]
[1733620013499,0.034921,100130.0,100120.0,0.21329785]
[1733620013793,0.28262674,100130.0,100120.0,0.00624079]
[1733620014197,0.28262674,100130.0,100110.0,0.97317678]
[1733620014198,0.034924,100120.0,100110.0,0.57667678]
[1733620014390,0.16056284,100120.0,100110.0,0.58915878]
[1733620014593,0.09774342,100120.0,100110.0,0.58915878]
[1733620015089,0.18731032,100120.0,100110.0,0.58915878]
[1733620015290,0.25012974,100120.0,100110.0,0.58915878]
[1733620015586,0.25112974,100120.0,100110.0,0.59615878]
[1733620016594,0.28412974,100120.0,100110.0,0.59615924]
[1733620017393,0.34386521,100120.0,100110.0,0.41778439]
[1733620018301,0.34386521,100120.0,100110.0,0.41520846]
[1733620019399,0.35407869,100120.0,100110.0,0.41520846]
[1733620020909,0.22843985,100120.0,100110.0,0.41520846]
[1733620021093,0.29125927,100120.0,100110.0,0.41520846]
[1733620023505,0.29125927,100120.0,100110.0,0.42020143]
[1733620025107,0.35407869,100120.0,100110.0,0.42020143]
[1733620025310,0.35407869,100120.0,100110.0,0.40530193]
[1733620025497,0.29442537,100120.0,100110.0,0.42590103]
[1733620028712,0.29442537,100120.0,100110.0,0.72320004]
[1733620029697,0.32482537,100120.0,100110.0,0.72320004]
[1733620032016,0.32482537,100120.0,100110.0,0.72320101]
[1733620033118,0.32482537,100120.0,100110.0,0.72062101]
[1733620033515,0.32482537,100120.0,100110.0,0.35982101]
[1733620033716,0.32482537,100120.0,100110.0,0.062522]
[1733620034017,0.32482537,100120.0,100110.0,0.05003957]
[1733620034226,0.32482537,100120.0,100110.0,0.06252226]
[1733620034409,0.32482537,100120.0,100110.0,0.35982127]
[1733620035213,0.32482537,100120.0,100110.0,0.34733871]
[1733620035413,0.32482537,100120.0,100110.0,0.6840469]
[1733620036013,0.32482537,100120.0,100110.0,0.35982134]
[1733620036413,0.68562537,100120.0,100110.0,0.31499308]
[1733620036710,0.68562537,100120.0,100110.0,0.1936098]
[1733620036914,0.59597632,100120.0,100110.0,0.1936222]
[1733620037118,0.74527869,100120.0,100110.0,0.1936222]
[1733620037420,0.80809811,100120.0,100110.0,0.1936222]
[1733620040523,0.83804262,100120.0,100110.0,0.0151137]
[1733620041627,0.83831747,100120.0,100110.0,0.0151137]
[1733620042024,0.83831747,100120.0,100110.0,0.007]
[1733620042227,0.83831747,100120.0,100100.0,0.17863411]
[1733620042228,0.83831747,100120.0,100100.0,0.1812171]
[1733620042425,0.70115662,100110.0,100100.0,0.19370022]
[1733620042634,0.70123662,100110.0,100100.0,0.19370022]
[1733620043015,0.88075835,100110.0,100100.0,0.19370022]
[1733620043625,0.88180713,100110.0,100100.0,0.1902171]
[1733620043825,0.73216857,100110.0,100100.0,0.1902171]
[1733620044027,0.88180114,100110.0,100100.0,0.1902171]
[1733620044329,0.73216857,100110.0,100100.0,0.0117086]
[1733620044523,0.88178358,100110.0,100100.0,0.1902171]
[1733620045818,0.73216857,100110.0,100100.0,0.00912561]
[1733620046029,0.73216857,100110.0,100100.0,0.0117086]
[1733620046626,0.73216857,100110.0,100100.0,0.00258299]
[1733620046831,0.034931,100100.0,100090.0,0.17859079]
[1733620047133,0.88206029,100100.0,100090.0,0.19107482]
[1733620047332,0.88206029,100100.0,100090.0,0.17859079]
[1733620047635,0.64268253,100100.0,100090.0,0.17859592]
[1733620048032,0.64368942,100100.0,100090.0,0.17959592]
[1733620049928,0.67668942,100100.0,100090.0,0.17959592]
[1733620050129,0.67668942,100100.0,100090.0,0.41766939]
[1733620050635,0.72659942,100100.0,100090.0,0.41766939]
[1733620051133,0.72659942,100100.0,100090.0,0.17959592]
[1733620052232,0.72659942,100100.0,100090.0,0.42266359]
[1733620052634,0.73676081,100100.0,100090.0,0.18459012]
[1733620054237,0.73676081,100100.0,100090.0,0.18771153]
[1733620054736,0.61112197,100100.0,100090.0,0.18771153]
[1733620054938,0.73676081,100100.0,100090.0,0.18771153]
[1733620055336,0.73676081,100100.0,100090.0,0.17959592]
[1733620055528,0.79660995,100100.0,100090.0,0.00911565]
[1733620056935,0.97613168,100100.0,100090.0,0.00911565]
[1733620057241,0.79660995,100100.0,100090.0,0.00911565]
[1733620058140,0.76510995,100100.0,100090.0,0.00911565]
[1733620058635,0.76510995,100100.0,100090.0,0.04405065]
[1733620058636,0.24567111,100100.0,100090.0,0.04405065]
[1733620058943,0.37130995,100100.0,100090.0,0.04405065]
[1733620059742,0.73210995,100100.0,100090.0,0.04405065]
[1733620060540,0.49078475,100100.0,100090.0,0.04405065]
[1733620060733,0.73210995,100100.0,100090.0,0.04405065]
[1733620060941,0.37130995,100100.0,100090.0,0.04405065]
[1733620061436,0.85159063,100100.0,100090.0,0.04405065]
[1733620061735,0.37130995,100100.0,100090.0,0.04405065]
[1733620062132,0.37130995,100100.0,100090.0,0.04405101]
[1733620062330,0.49079694,100100.0,100090.0,0.04405101]
[1733620062637,0.43082432,100100.0,100090.0,0.22264693]
[1733620063129,0.79162432,100100.0,100090.0,0.22264693]
[1733620064236,0.79162432,100100.0,100090.0,0.4607204]
[1733620064636,0.79162432,100100.0,100090.0,0.22264693]
[1733620065241,0.79162432,100100.0,100090.0,0.4607204]
[1733620066044,0.79162432,100100.0,100090.0,0.46072016]
[1733620066436,0.79168523,100100.0,100090.0,0.46072016]
[1733620067241,0.79168523,100100.0,100090.0,0.46324724]
[1733620067443,0.66604639,100100.0,100090.0,0.46324724]
[1733620067633,0.79168523,100100.0,100090.0,0.46324724]
[1733620068339,0.43088523,100100.0,100090.0,0.46324724]
[1733620069532,0.76204296,100100.0,100090.0,0.04657785]
[1733620070434,0.76204296,100100.0,100090.0,0.04405077]
[1733620071732,0.40124296,100100.0,100090.0,0.04405077]
[1733620072043,0.76204296,100100.0,100090.0,0.04405077]
[1733620074530,0.40124296,100100.0,100090.0,0.04405077]
[1733620074735,0.76204296,100100.0,100090.0,0.04405077]
[1733620075234,0.76204296,100100.0,100090.0,0.035935]
[1733620075441,0.76204296,100100.0,100090.0,0.04405077]
[1733620075643,0.76204296,100100.0,100090.0,0.22264669]
[1733620075834,0.76204296,100100.0,100090.0,0.25524669]
[1733620076640,0.40124296,100100.0,100090.0,0.25524669]
[1733620077543,0.3714736,100100.0,100090.0,0.70437642]
[1733620077744,0.24583476,100100.0,100090.0,1.12799584]
[1733620078045,0.24377168,100100.0,100090.0,1.49498309]
[1733620078256,0.33361996,100100.0,100090.0,1.43216367]
[1733620079341,0.27080054,100100.0,100090.0,1.43216367]
[1733620079542,0.26063915,100100.0,100090.0,2.18491397]
[1733620079840,0.14083828,100100.0,100090.0,1.88752266]
[1733620080135,0.14083828,100100.0,100090.0,1.88642123]
[1733620080340,0.14083828,100100.0,100090.0,2.28292123]
[1733620081050,0.05099,100100.0,100090.0,1.92590863]
[1733620081240,0.20964915,100110.0,100100.0,0.034931]
[1733620081551,0.08984828,100110.0,100100.0,1.49309526]
[1733620081738,0.08984828,100110.0,100100.0,1.52377526]
[1733620083146,0.08984828,100110.0,100100.0,1.40430356]
[1733620083348,0.08984828,100110.0,100100.0,1.40572269]
[1733620083650,0.05091,100110.0,100100.0,1.58550683]
[1733620084047,0.05091,100110.0,100100.0,1.57302145]
[1733620084248,0.05091,100110.0,100100.0,1.16510612]
[1733620084442,0.05091,100110.0,100100.0,1.22293119]
[1733620084645,0.32046324,100110.0,100100.0,0.78272283]
[1733620084849,0.32024444,100110.0,100100.0,0.78272283]
[1733620085146,0.20066237,100110.0,100100.0,0.60675285]
[1733620085458,0.08966041,100110.0,100100.0,1.57911794]
[1733620085747,4.1e-07,100110.0,100100.0,1.81958957]
[1733620086843,4.1e-07,100110.0,100100.0,1.82961444]
[1733620087042,0.14975237,100120.0,100110.0,0.034928]
[1733620087043,0.04991,100120.0,100110.0,0.034928]
[1733620087239,0.04991,100120.0,100110.0,0.65737873]
[1733620087438,0.04991,100120.0,100110.0,0.98825873]
[1733620087640,0.04991,100120.0,100110.0,0.98513785]
[1733620087838,0.04991,100120.0,100110.0,0.98825723]
[1733620088252,0.05091,100120.0,100110.0,0.98825723]
[1733620088553,0.05091,100120.0,100110.0,0.68825723]
[1733620089357,0.05091,100120.0,100110.0,0.92872617]
[1733620090157,0.05091,100120.0,100110.0,0.69075926]
[1733620090357,0.05091,100120.0,100110.0,0.68825723]
[1733620092449,0.05091,100120.0,100110.0,1.08475723]
[1733620092657,0.05091,100120.0,100110.0,1.53302352]
[1733620092859,0.05091,100120.0,100110.0,1.53302333]
[1733620093159,0.05091,100120.0,100110.0,1.77024287]
[1733620094051,0.05091,100120.0,100110.0,1.75962805]
[1733620094251,0.05091,100120.0,100110.0,1.77021206]
[1733620094461,0.05091,100120.0,100110.0,1.77020924]
[1733620095657,0.05091,100120.0,100110.0,1.77015097]
[1733620096653,0.05091,100120.0,100110.0,1.5329897]
[1733620096856,0.05091,100120.0,100110.0,1.77013911]
[1733620097357,0.05091,100120.0,100110.0,1.7470744]
[1733620097563,0.05091,100120.0,100110.0,1.77013817]
[1733620098061,0.05091,100120.0,100110.0,1.7771382]
[1733620099155,0.05091,100120.0,100110.0,1.90078879]
[1733620099462,0.05091,100120.0,100110.0,1.92074944]
[1733620100767,0.05091,100120.0,100110.0,1.92074911]
[1733620101560,0.11372942,100120.0,100110.0,1.68352365]
[1733620101759,0.14432942,100120.0,100110.0,1.05252605]
[1733620102158,0.14432942,100120.0,100110.0,1.05005562]
[1733620102354,0.14432942,100120.0,100110.0,1.05252605]
[1733620102756,0.08151,100120.0,100110.0,1.11534547]
[1733620103159,0.08151,100120.0,100110.0,1.74750112]
[1733620103464,0.08151,100120.0,100110.0,1.11534547]
[1733620103665,0.08151,100120.0,100110.0,1.74758243]
[1733620103865,0.05091,100120.0,100110.0,2.10838243]
[1733620104061,0.05091,100120.0,100110.0,1.87122948]
[1733620104267,0.05091,100120.0,100110.0,2.22880894]
[1733620104472,0.05091,100120.0,100110.0,2.61560474]
[1733620104665,0.05091,100120.0,100110.0,2.2524446]
[1733620105168,0.05091,100120.0,100110.0,1.95961858]
[1733620105766,0.05091,100120.0,100110.0,2.35716623]
[1733620106863,0.05091,100120.0,100110.0,2.35636727]
[1733620107372,0.05091,100120.0,100110.0,2.35636655]
[1733620107667,0.0629,100130.0,100110.0,2.19847977]
[1733620107865,0.0629,100130.0,100120.0,0.93952823]
[1733620108172,0.0629,100130.0,100120.0,0.9601205]
[1733620108563,0.0629,100130.0,100120.0,0.89738108]
[1733620108761,0.0629,100130.0,100120.0,0.9602005]
[1733620109460,0.0629,100130.0,100120.0,0.9612005]
[1733620109659,0.0629,100130.0,100120.0,0.78057265]
[1733620110165,0.0629,100130.0,100120.0,0.75998038]
[1733620110465,0.0629,100130.0,100120.0,0.78057227]
[1733620110666,0.0629,100130.0,100120.0,0.77745229]
[1733620110867,0.0629,100130.0,100120.0,0.78057227]
[1733620112372,0.0629,100130.0,100120.0,0.7904545]
[1733620113258,0.0629,100130.0,100120.0,0.79293042]
[1733620114164,0.0629,100130.0,100120.0,1.08985973]
[1733620114366,0.0629,100130.0,100120.0,0.79293025]
[1733620114874,0.0629,100130.0,100120.0,1.24511192]
[1733620115068,0.0629,100130.0,100120.0,1.64243194]
[1733620115668,0.0629,100130.0,100120.0,1.63995602]
[1733620117569,0.0629,100130.0,100120.0,1.63995604]
[1733620119866,0.0629,100130.0,100120.0,1.64058856]
[1733620120869,0.0629,100130.0,100120.0,1.64058826]
[1733620122773,0.0629,100130.0,100120.0,1.6430517]
[1733620123379,0.0629,100130.0,100120.0,1.58023228]
[1733620123675,0.0629,100130.0,100120.0,0.68747036]
[1733620123676,0.16064042,100130.0,100120.0,0.68747036]
[1733620123972,0.73401221,100130.0,100120.0,0.42576208]
[1733620124175,0.67119279,100130.0,100120.0,0.41078608]
[1733620127274,0.67119279,100130.0,100120.0,0.21347521]
[1733620129779,0.86074681,100130.0,100120.0,0.034924]
[1733620130376,0.49994681,100130.0,100120.0,0.034924]
[1733620130685,0.86074681,100130.0,100120.0,0.034924]
[1733620132385,0.49994681,100130.0,100120.0,0.034924]
[1733620132587,0.86074681,100130.0,100120.0,0.034924]
[1733620132885,0.034924,100120.0,100110.0,0.21594135]
[1733620133188,0.70319521,100120.0,100110.0,0.0498722]
[1733620133377,0.70319521,100120.0,100110.0,0.034927]
[1733620133983,0.70419521,100120.0,100110.0,0.001]
[1733620134192,0.88371694,100120.0,100110.0,0.00599316]
[1733620134495,1.18371694,100120.0,100100.0,0.21590585]
[1733620134687,0.55406684,100110.0,100100.0,0.22838793]
[1733620134896,0.64107979,100110.0,100100.0,0.04983672]
[1733620135197,0.64107979,100110.0,100100.0,0.03493]
[1733620135683,0.64107979,100110.0,100100.0,0.03593]
[1733620136388,0.64107979,100110.0,100100.0,0.03905115]
[1733620136981,0.64207979,100110.0,100100.0,0.03905115]
[1733620137489,0.64207979,100110.0,100100.0,0.03593]
[1733620137679,0.52412742,100110.0,100100.0,0.21760238]
[1733620138087,0.57403742,100110.0,100100.0,0.03905117]
[1733620140802,0.57403742,100110.0,100100.0,0.03905121]
[1733620143297,0.57403742,100110.0,100100.0,0.0390512]
[1733620143796,0.57403742,100110.0,100100.0,0.03905117]
[1733620144299,0.58416992,100110.0,100100.0,0.03905117]
[1733620144595,0.58416992,100110.0,100100.0,0.04404508]
[1733620145697,0.22336992,100110.0,100100.0,0.04404508]
[1733620145893,0.19066992,100110.0,100100.0,0.04404508]
[1733620146094,0.0611225,100110.0,100100.0,0.1068645]
[1733620146396,0.05099,100110.0,100100.0,0.75379977]
[1733620146699,0.05099,100110.0,100100.0,0.7562169]
[1733620148389,0.05099,100110.0,100100.0,0.75621654]
[1733620152002,0.05099,100110.0,100100.0,0.81903596]
[1733620152203,0.04493894,100120.0,100110.0,0.034928]
[1733620152397,0.10775836,100120.0,100110.0,0.2337257]
[1733620152596,0.10775836,100120.0,100110.0,0.23622434]
[1733620153000,0.01001294,100120.0,100110.0,0.65984376]
[1733620153208,0.67315423,100130.0,100110.0,1.11322898]
[1733620153410,0.63035423,100130.0,100120.0,0.21318678]
[1733620153607,0.63035423,100130.0,100120.0,0.22138039]
[1733620155518,0.69317365,100130.0,100120.0,0.22138039]
[1733620155825,0.69317365,100130.0,100120.0,0.22238039]
[1733620156225,0.63035423,100130.0,100120.0,0.22238039]
[1733620156523,0.7801066,100130.0,100120.0,0.21738735]
[1733620156712,0.7801066,100130.0,100120.0,0.22238026]
[1733620156918,0.82087462,100130.0,100120.0,0.22238026]
[1733620157217,0.82087462,100130.0,100120.0,0.21925969]
[1733620157424,0.82087462,100130.0,100120.0,0.21925974]
[1733620157611,0.82087462,100130.0,100120.0,0.22238034]
[1733620158215,0.82087462,100130.0,100120.0,0.04411756]
[1733620158825,0.82087462,100130.0,100120.0,0.22238034]
[1733620159915,0.76096442,100130.0,100120.0,0.03912463]
[1733620161530,0.76096442,100130.0,100120.0,0.00420063]
[1733620161531,0.61461748,100130.0,100120.0,0.00420063]
[1733620161726,0.82378384,100130.0,100120.0,0.00420063]
[1733620162020,0.82378384,100130.0,100120.0,0.00108]
[1733620162328,1.06296736,100130.0,100120.0,0.00108]
[1733620164527,0.82378384,100130.0,100120.0,0.00108]
[1733620166021,0.82378384,100130.0,100120.0,0.00420069]
[1733620166221,0.82378384,100130.0,100120.0,0.00108]
[1733620166429,1.06296736,100130.0,100120.0,0.00108]
[1733620166933,0.853801,100130.0,100120.0,0.00108]
[1733620167125,0.853801,100130.0,100120.0,0.00408]
[1733620167827,1.0332124,100130.0,100120.0,0.00408]
[1733620168034,0.79402888,100130.0,100120.0,0.0121945]
[1733620168724,0.79402888,100130.0,100120.0,0.00408]
[1733620168924,0.66839004,100130.0,100120.0,0.0072009]
[1733620169220,0.79402888,100130.0,100120.0,0.0072009]
[1733620169431,0.73120946,100130.0,100120.0,0.01219435]
[1733620170235,0.81792256,100130.0,100120.0,0.0121944]
[1733620170429,0.88074198,100130.0,100120.0,0.01531521]
[1733620170725,0.88074505,100130.0,100120.0,0.01219429]
[1733620170932,0.88074505,100130.0,100120.0,0.04711829]
[1733620170933,0.85014505,100130.0,100120.0,0.04711829]
[1733620171331,0.67073365,100130.0,100120.0,0.22538107]
[1733620171731,0.85014505,100130.0,100120.0,0.22538107]
[1733620173533,0.85014505,100130.0,100120.0,0.22538118]
[1733620173827,0.67073365,100130.0,100120.0,0.22538118]
[1733620174023,0.67073365,100130.0,100120.0,0.21726678]
[1733620174224,0.85014505,100130.0,100120.0,0.22538079]
[1733620174634,0.67073365,100130.0,100120.0,0.22538079]
[1733620175029,0.73051136,100130.0,100120.0,0.04711801]
[1733620175233,0.96969488,100130.0,100120.0,0.04212477]
[1733620176935,0.96969488,100130.0,100120.0,0.04212469]
[1733620177137,0.73051136,100130.0,100120.0,0.04212469]
[1733620177534,0.73051136,100130.0,100120.0,0.04711771]
[1733620180838,0.73051136,100130.0,100120.0,0.01219371]
[1733620181342,0.73051136,100130.0,100120.0,0.01219372]
[1733620182737,0.73051136,100130.0,100120.0,0.00720069]
[1733620182933,0.67082027,100130.0,100120.0,0.18546347]
[1733620183243,0.67082027,100130.0,100120.0,0.19045645]
[1733620184133,0.73363969,100130.0,100120.0,0.42859269]
[1733620184439,0.94568634,100130.0,100120.0,0.19045645]
[1733620188945,0.79606413,100130.0,100120.0,0.19045645]
[1733620189546,0.73324471,100130.0,100120.0,0.19045645]
[1733620190038,0.73324471,100130.0,100120.0,0.18234278]
[1733620190242,0.73324471,100130.0,100120.0,0.1904566]
[1733620190739,0.67042529,100130.0,100120.0,0.1904566]
[1733620191042,0.73324471,100130.0,100120.0,0.1904566]
[1733620196044,0.79606413,100130.0,100120.0,0.1904566]
[1733620197154,0.79606413,100130.0,100120.0,0.01219382]
[1733620197356,0.79606413,100130.0,100120.0,0.1904566]
[1733620198152,0.79606413,100130.0,100120.0,0.01219382]
[1733620198153,0.88590788,100130.0,100120.0,0.01219382]
[1733620198345,1.18523055,100130.0,100120.0,0.0072007]
[1733620199550,1.1254187,100130.0,100120.0,0.0072007]
[1733620199944,0.88590788,100130.0,100120.0,0.0072007]
[1733620200148,0.9672775,100130.0,100120.0,0.0072007]
[1733620200349,0.9672775,100130.0,100120.0,0.00408]
[1733620200553,1.03009692,100130.0,100120.0,0.00720077]
[1733620200854,0.76070652,100130.0,100120.0,0.00720077]
[1733620204654,0.6978871,100130.0,100120.0,0.00720077]
[1733620204848,0.76070652,100130.0,100120.0,0.03830077]
[1733620205149,0.76070652,100130.0,100120.0,0.21656355]
[1733620205150,0.70083606,100130.0,100120.0,0.21656355]
[1733620205549,0.70083606,100130.0,100120.0,0.22155683]
[1733620206847,0.70083606,100130.0,100120.0,0.19045683]
[1733620207054,0.76365548,100130.0,100120.0,0.19045683]
[1733620207256,0.70083606,100130.0,100120.0,0.19045683]
[1733620209158,0.52119806,100130.0,100120.0,0.19045683]
[1733620209460,0.52119806,100130.0,100120.0,0.01219405]
[1733620210854,0.79359515,100130.0,100120.0,0.01219405]
[1733620211056,0.82489515,100130.0,100120.0,0.01219405]
[1733620212863,0.82489515,100130.0,100120.0,0.01219432]
[1733620213249,0.69925631,100130.0,100120.0,0.01219432]
[1733620213449,0.82489515,100130.0,100120.0,0.00408]
[1733620214463,1.06440361,100130.0,100120.0,0.00408]
[1733620214664,0.82489515,100130.0,100120.0,0.00408]
[1733620214965,1.06440361,100130.0,100120.0,0.00408]
[1733620215354,0.82489515,100130.0,100120.0,0.004]
[1733620215758,0.69925631,100130.0,100120.0,0.004]
[1733620215962,0.82489515,100130.0,100120.0,0.004]
[1733620216363,0.69925631,100130.0,100120.0,0.004]
[1733620216657,0.76207573,100130.0,100120.0,0.004]
[1733620219066,0.73077573,100130.0,100120.0,0.004]
[1733620219367,0.48909806,100130.0,100120.0,0.00712102]
[1733620219568,0.48909806,100130.0,100120.0,0.04022102]
[1733620220068,0.75848846,100130.0,100120.0,0.04022102]
[1733620220467,1.05781113,100130.0,100120.0,0.04521443]
[1733620221772,0.75848846,100130.0,100120.0,0.04521443]
[1733620222156,0.99792296,100130.0,100120.0,0.04521443]
[1733620222374,0.72853256,100130.0,100120.0,0.04521443]
[1733620222763,0.99792296,100130.0,100120.0,0.04521443]
[1733620223176,0.72853256,100130.0,100120.0,0.04521443]
[1733620223364,0.66571314,100130.0,100120.0,0.04521443]
[1733620223563,0.72853256,100130.0,100120.0,0.04521443]
[1733620223764,0.99792296,100130.0,100120.0,0.04521443]
[1733620223964,0.66571314,100130.0,100120.0,0.08013843]
[1733620224167,0.72853256,100130.0,100120.0,0.08013843]
[1733620225565,0.72853256,100130.0,100120.0,0.072024]
[1733620225781,0.72853256,100130.0,100120.0,0.08013823]
[1733620227564,0.63712296,100130.0,100120.0,0.08013823]
[1733620227769,0.99792296,100130.0,100120.0,0.08013848]
[1733620228075,0.99792296,100130.0,100120.0,0.25840126]
[1733620228076,0.66867272,100130.0,100120.0,0.25840126]
[1733620229172,0.81830878,100130.0,100120.0,0.4965375]
[1733620229374,0.81830878,100130.0,100120.0,0.25840126]
[1733620230075,0.81830878,100130.0,100120.0,0.4965375]
[1733620230272,0.81830878,100130.0,100120.0,0.25840126]
[1733620230676,0.81830878,100130.0,100120.0,0.25028678]
[1733620230874,0.81830878,100130.0,100120.0,0.25340745]
[1733620231177,0.81830878,100130.0,100120.0,0.25840052]
[1733620231378,0.81830878,100130.0,100120.0,0.49653676]
[1733620231669,0.63873412,100130.0,100120.0,0.49653676]
[1733620235077,0.63873412,100130.0,100120.0,0.08013774]
[1733620235078,0.48909806,100130.0,100120.0,0.08013774]
[1733620236065,0.64818675,100130.0,100120.0,0.08013774]
[1733620236272,0.64818675,100130.0,100120.0,0.14295716]
[1733620236481,0.46870944,100130.0,100120.0,0.14295716]
[1733620236780,0.46870944,100130.0,100120.0,0.17305716]
[1733620236985,0.17946015,100130.0,100120.0,1.355996]
[1733620237180,0.09954612,100130.0,100120.0,1.59932342]
[1733620237382,0.18944941,100140.0,100130.0,0.431421]
[1733620237683,0.17944941,100140.0,100130.0,0.86536611]
[1733620237984,0.17944941,100140.0,100130.0,1.16536611]
[1733620238376,0.03501732,100150.0,100140.0,0.034917]
[1733620238579,0.03501732,100150.0,100140.0,0.46665016]
[1733620238770,0.03501732,100150.0,100140.0,0.46673016]
[1733620238975,0.29305172,100150.0,100140.0,0.46673016]
[1733620239180,0.00010332,100150.0,100140.0,0.46673016]
[1733620239383,0.11954551,100150.0,100140.0,0.50138688]
[1733620239687,0.01110332,100150.0,100140.0,0.50138688]
[1733620240186,0.01110332,100150.0,100140.0,0.49917493]
[1733620240392,0.13048752,100150.0,100140.0,0.49917493]
[1733620242377,0.21996538,100150.0,100140.0,0.49917493]
[1733620243291,0.01110332,100150.0,100140.0,0.67743771]
[1733620244390,0.04390332,100150.0,100140.0,0.67743771]
[1733620245883,0.07460332,100150.0,100140.0,0.67743771]
[1733620250090,0.19398752,100150.0,100140.0,0.49917493]
[1733620250609,0.19398752,100150.0,100140.0,0.49418186]
[1733620250805,0.22548752,100150.0,100140.0,0.49418186]
[1733620251693,0.26040152,100150.0,100140.0,0.43136244]
[1733620251892,0.26040152,100150.0,100140.0,0.49418186]
[1733620252395,0.26040152,100150.0,100140.0,0.49106119]
[1733620252697,0.26040152,100150.0,100140.0,0.49418077]
[1733620252899,0.26040152,100150.0,100140.0,0.499172]
[1733620253290,0.26040152,100150.0,100140.0,0.49418077]
[1733620253508,0.26040152,100150.0,100140.0,0.43136135]
[1733620254190,0.26040152,100150.0,100140.0,0.43635268]
[1733620254191,0.25840152,100150.0,100140.0,0.43635268]
[1733620254601,0.25840152,100150.0,100140.0,0.43136135]
[1733620255604,0.24940152,100150.0,100140.0,0.43136135]
[1733620255789,0.25440152,100150.0,100140.0,0.43136135]
[1733620256494,0.25440152,100150.0,100140.0,0.43635268]
[1733620256800,0.13501732,100150.0,100140.0,0.43635268]
[1733620256999,0.55863674,100150.0,100140.0,0.07056135]
[1733620257190,0.64809606,100150.0,100140.0,0.21637936]
[1733620257503,0.64809606,100150.0,100140.0,0.22137077]
[1733620257705,0.64809606,100150.0,100140.0,0.04310799]
[1733620258305,0.64809606,100150.0,100140.0,0.22137077]
[1733620259295,0.67791584,100150.0,100140.0,0.04310799]
[1733620261593,0.67791584,100150.0,100140.0,0.00819099]
[1733620261796,0.034917,100140.0,100130.0,0.84781802]
[1733620262106,0.54826204,100140.0,100130.0,0.6421289]
[1733620263099,0.54826204,100140.0,100130.0,0.6441289]
[1733620263409,0.66854114,100140.0,100130.0,0.61168178]
[1733620263792,0.66854114,100140.0,100130.0,0.21518178]
[1733620264511,0.64179494,100140.0,100130.0,0.18026278]
[1733620264906,0.64179494,100140.0,100130.0,0.002]
[1733620265113,0.52251584,100140.0,100120.0,0.63680451]
[1733620265301,0.57988963,100130.0,100120.0,0.66708744]
[1733620265607,0.58004963,100130.0,100120.0,0.66925571]
[1733620265797,0.69958191,100130.0,100120.0,0.63463624]
[1733620266394,0.69958191,100130.0,100120.0,0.63863624]
[1733620266804,0.69958191,100130.0,100120.0,0.24213624]
[1733620267009,0.69958191,100130.0,100120.0,0.24413624]
[1733620268002,0.73188191,100130.0,100120.0,0.24413624]
[1733620268504,0.76318191,100130.0,100120.0,0.24413624]
[1733620268908,0.77340922,100130.0,100120.0,0.24413624]
[1733620271309,0.77340922,100130.0,100120.0,0.006]
[1733620271913,0.83622864,100130.0,100120.0,0.006]
[1733620272210,0.95539525,100130.0,100120.0,0.01099283]
[1733620272910,0.95539525,100130.0,100120.0,0.006]
[1733620273704,0.95539525,100130.0,100120.0,0.00912078]
[1733620277119,0.95539525,100130.0,100120.0,0.006]
[1733620277412,0.7764766,100130.0,100120.0,0.006]
[1733620277718,0.65083776,100130.0,100120.0,0.006]
[1733620278016,0.71365718,100130.0,100120.0,0.00912085]
[1733620278310,0.67084547,100130.0,100120.0,0.00912079]
[1733620278507,0.73366489,100130.0,100120.0,0.00912079]
[1733620278710,0.85297229,100130.0,100120.0,0.04404479]
[1733620278919,0.65123513,100130.0,100120.0,0.04404479]
[1733620279106,0.65123513,100130.0,100120.0,0.04903769]
[1733620280110,0.74071615,100130.0,100120.0,0.01411369]
[1733620280318,0.62141695,100130.0,100120.0,0.01411369]
[1733620280814,0.26061695,100130.0,100120.0,0.01411369]
[1733620281523,0.26061695,100130.0,100120.0,0.01411332]